fUSD/lending_fUSD_20250904
["ID","MTS","AMOUNT","RATE_DAILY","PERIOD"]
[383577546,1757003432811,-160.0,0.00021978,2]
[383577547,1757003432823,-239.84119403,0.00021978,2]
[383577548,1757003432838,-151.0,0.00021978,2]
[383577549,1757003432849,-250.0,0.00021978,2]
[383577550,1757003432859,-250.0,0.00021978,2]
[383577551,1757003432871,-721.12765535,0.00021978,2]
[383577552,1757003432885,-151.0,0.00021978,2]
[383577553,1757003432898,-822.25744248,0.00021978,2]
[383577554,1757003432911,-151.0,0.00021978,2]
[383577555,1757003432923,-151.0,0.00021978,2]
[383577556,1757003432935,-180.15118777,0.00021978,2]
[383577557,1757003432946,-151.0,0.00021978,2]
[383577558,1757003432958,-151.0,0.00021978,2]
[383577559,1757003432970,-151.0,0.00021978,2]
[383577560,1757003432982,-151.0,0.00021978,2]
[383577561,1757003432992,-151.0,0.00021978,2]
[383577562,1757003433003,-250.0,0.00021978,2]
[383577563,1757003433014,-151.0,0.00021978,2]
[383577564,1757003433025,-151.0,0.00021978,2]
[383577565,1757003433036,-250.0,0.00021978,2]
[383577566,1757003433047,-151.0,0.00021978,2]
[383577567,1757003433058,-151.0,0.00021978,2]
[383577568,1757003433070,-250.0,0.00021978,2]
[383577569,1757003433081,-151.0,0.00021978,2]
[383577570,1757003433093,-151.0,0.00021978,2]
[383577571,1757003433106,-250.0,0.00021978,2]
[383577572,1757003433118,-151.0,0.00021978,2]
[383577573,1757003433130,-250.0,0.00021978,2]
[383577574,1757003433140,-151.0,0.00021978,2]
[383577575,1757003433150,-250.0,0.00021978,2]
[383577576,1757003433160,-151.0,0.00021978,2]
[383577577,1757003433170,-250.0,0.00021978,2]
[383577578,1757003433180,-151.0,0.00021978,2]
[383577579,1757003433190,-250.0,0.00021978,2]
[383577580,1757003433202,-250.0,0.00021978,2]
[383577581,1757003433213,-151.0,0.00021978,2]
[383577582,1757003433224,-250.0,0.00021978,2]
[383577583,1757003433235,-151.0,0.00021978,2]
[383577584,1757003433247,-250.0,0.00021978,2]
[383577585,1757003433259,-250.0,0.00021978,2]
[383577586,1757003433275,-151.0,0.00021978,2]
[383577587,1757003433290,-250.0,0.00021978,2]
[383577588,1757003433301,-151.0,0.00021978,2]
[383577589,1757003433312,-250.0,0.00021978,2]
[383577590,1757003433327,-250.0,0.00021978,2]
[383577591,1757003433340,-250.0,0.00021978,2]
[383577592,1757003433352,-151.0,0.00021978,2]
[383577593,1757003433364,-250.0,0.00021978,2]
[383577594,1757003433375,-250.0,0.00021978,2]
[383577595,1757003433388,-250.0,0.00021978,2]
[383577596,1757003433399,-151.0,0.00021978,2]
[383577597,1757003433411,-250.0,0.00021978,2]
[383577598,1757003433422,-250.0,0.00021978,2]
[383577599,1757003433433,-250.0,0.00021978,2]
[383577600,1757003433442,-151.0,0.00021978,2]
[383577601,1757003433452,-250.0,0.00021978,2]
[383577602,1757003433463,-250.0,0.00021978,2]
[383577603,1757003433474,-250.0,0.00021978,2]
[383577604,1757003433482,-250.0,0.00021978,2]
[383577605,1757003433492,-151.0,0.00021978,2]
[383577606,1757003433502,-250.0,0.00021978,2]
[383577607,1757003433512,-250.0,0.00021978,2]
[383577608,1757003433523,-250.0,0.00021978,2]
[383577609,1757003433532,-250.0,0.00021978,2]
[383577610,1757003433541,-202.0,0.00021978,2]
[383577611,1757003433549,-250.0,0.00021978,2]
[383577612,1757003433559,-250.0,0.00021978,2]
[383577613,1757003433571,-250.0,0.00021978,2]
[383577614,1757003433583,-250.0,0.00021978,2]
[383577615,1757003433594,-250.0,0.00021978,2]
[383577616,1757003433605,-250.0,0.00021978,2]
[383577617,1757003433616,-389.9769229,0.00021978,2]
[383577618,1757003433629,-322.6107,0.00021978,2]
[383577619,1757003433643,-250.0,0.00021978,2]
[383577620,1757003433656,-250.0,0.00021978,2]
[383577621,1757003433668,-250.0,0.00021978,2]
[383577622,1757003433681,-250.0,0.00021978,2]
[383577623,1757003433694,-250.0,0.00021978,2]
[383577624,1757003433707,-250.0,0.00021978,2]
[383577625,1757003433720,-250.0,0.00021978,2]
[383577626,1757003433732,-209.40437684,0.00021978,2]
[383577627,1757003433748,-250.0,0.00021978,2]
[383577628,1757003433760,-250.0,0.00021978,2]
[383577629,1757003433772,-250.0,0.00021978,2]
[383577630,1757003433784,-250.0,0.00021978,2]
[383577631,1757003433796,-250.0,0.00021978,2]
[383577632,1757003433807,-250.0,0.00021978,2]
[383577633,1757003433823,-250.0,0.00021978,2]
[383577634,1757003433836,-250.0,0.00021978,2]
[383577635,1757003433847,-250.0,0.00021978,2]
[383577636,1757003433857,-250.0,0.00021978,2]
[383577637,1757003433867,-250.0,0.00021978,2]
[383577638,1757003433878,-356.95,0.00022,2]
[383577639,1757003433888,-250.0,0.00022095,2]
[383577640,1757003433899,-1116.35,0.00022096,2]
[383577641,1757003433909,-900.47,0.000221,2]
[383577642,1757003433919,-366.14,0.000221,2]
[383577643,1757003433929,-150.18,0.00022109,2]
[383577644,1757003433941,-195.0,0.00022123,2]
[383577645,1757003433952,-150.0,0.00022141,2]
[383577646,1757003433963,-160.0,0.00022178,7]
[383577647,1757003433973,-666.0,0.00022183,3]
[383577648,1757003433984,-482.59,0.00022374,2]
[383577649,1757003433995,-259.33766892,0.000224,2]
[383577650,1757003434005,-200.0,0.0002242,2]
[383577651,1757003434016,-171.35,0.0002242,2]
[383577652,1757003434028,-5000.0,0.0002242,2]
[383577653,1757003434039,-3010.21128815,0.00022495,2]
[383577654,1757003434051,-500.0,0.00022635,2]
[383577655,1757003434062,-1087.0,0.00022928,2]
[383577656,1757003434075,-150.0,0.00022932,4]
[383577657,1757003434086,-482.59,0.00022979,2]
[383577658,1757003434097,-400.0,0.00023074,2]
[383577659,1757003434107,-400.0,0.00023074,2]
[383577660,1757003434118,-400.0,0.00023074,2]
[383577661,1757003434129,-400.0,0.00023074,2]
[383577662,1757003434140,-400.0,0.00023074,2]
[383577663,1757003434151,-400.0,0.00023074,2]
[383577664,1757003434162,-400.0,0.00023074,2]
[383577665,1757003434172,-400.0,0.00023074,2]
[383577666,1757003434187,-400.0,0.00023074,2]
[383577667,1757003434197,-400.0,0.00023074,2]
[383577668,1757003434207,-400.0,0.00023074,2]
[383577669,1757003434218,-400.0,0.00023074,2]
[383577670,1757003434229,-400.0,0.00023097,2]
[383577671,1757003434239,-154.08,0.00023097,2]
[383577672,1757003434248,-522.92,0.00023097,2]
[383577673,1757003434258,-400.0,0.00023097,2]
[383577674,1757003434267,-483.99,0.00023097,2]
[383577675,1757003434276,-400.0,0.00023097,2]
[383577676,1757003434286,-400.0,0.00023097,2]
[383577677,1757003434296,-400.0,0.00023097,2]
[383577678,1757003434307,-400.0,0.00023097,2]
[383577679,1757003434319,-500.0,0.00023097,2]
[383577680,1757003434330,-400.0,0.00023097,2]
[383577681,1757003434340,-600.0,0.00023243,2]
[383577682,1757003434351,-567.0,0.00023243,2]
[383577683,1757003434361,-1300.0,0.00023243,2]
[383577684,1757003434373,-1577.0,0.00023243,2]
[383577685,1757003434384,-811.0,0.00023243,2]
[383577686,1757003434394,-1175.0,0.00023243,2]
[383577687,1757003434406,-896.0,0.00023243,2]
[383577688,1757003434419,-1258.0,0.00023243,2]
[383577689,1757003434431,-2661.75491048,0.00023243,2]
[383577690,1757003434494,-777.55598973,0.00023243,2]
[383577691,1757003434508,-436.60011272,0.00023243,2]
[383577692,1757003434521,-339.66691684,0.00023243,2]
[383577726,1757003438429,-1947.42207023,0.00023243,2]
[383577728,1757003438440,-3382.0,0.00023243,2]
[383577730,1757003438451,-4163.0,0.00023243,2]
[383577732,1757003438461,-2035.0,0.00023243,2]
[383577734,1757003438471,-14650.1473,0.00023249,2]
[383577759,1757003438833,-248.71531821,0.00023347,2]
[383577761,1757003438844,-400.0,0.00023348,2]
[383577763,1757003438854,-268.82,0.00023348,2]
[383577765,1757003438863,-400.0,0.00023348,2]
[383577767,1757003438873,-239.16,0.00023348,2]
[383577768,1757003438883,-400.0,0.00023348,2]
[383577769,1757003438892,-400.0,0.00023371,2]
[383577770,1757003438902,-400.0,0.00023371,2]
[383577771,1757003438912,-400.0,0.00023371,2]
[383577772,1757003438921,-400.0,0.00023371,2]
[383577774,1757003438939,-276.947544,0.00023371,2]
[383577777,1757003438952,-160.0,0.00023566,2]
[383577778,1757003438962,-212.59699798,0.00023566,2]
[383577780,1757003438972,-514.64478986,0.00023566,2]
[383577781,1757003438983,-160.0,0.00023566,2]
[383577782,1757003438993,-400.0,0.00023622,2]
[383577783,1757003439003,-400.0,0.00023622,2]
[383577784,1757003439012,-400.0,0.00023622,2]
[383577785,1757003439022,-400.0,0.00023645,2]
[383577786,1757003439032,-400.0,0.00023645,2]
[383577787,1757003439043,-400.0,0.00023645,2]
[383577788,1757003439053,-400.0,0.00023645,2]
[383577789,1757003439063,-1000.0,0.00023726,2]
[383577790,1757003439073,-1000.0,0.000238,2]
[383577791,1757003439083,-1680.0,0.00023851,2]
[383577792,1757003439093,-420.0,0.00023881,2]
[383577793,1757003439102,-400.0,0.00023896,2]
[383577794,1757003439111,-400.0,0.00023896,2]
[383577795,1757003439121,-400.0,0.00023896,2]
[383577796,1757003439131,-400.0,0.00023919,2]
[383577797,1757003439141,-400.0,0.00023919,2]
[383577798,1757003439151,-400.0,0.00023919,2]
[383577799,1757003439161,-400.0,0.00023919,2]
[383577800,1757003439171,-1424.473,0.00024,5]
[383577801,1757003439181,-176.535,0.00024,5]
[383577802,1757003439191,-5000.00005736,0.00024,5]
[383577803,1757003439200,-900.47,0.00024,2]
[383577804,1757003439210,-366.14,0.00024,2]
[383577805,1757003439220,-2658.33344389,0.00024071,2]
[383577806,1757003439229,-1087.0,0.00024135,2]
[383577807,1757003439239,-400.0,0.0002417,2]
[383577808,1757003439250,-400.0,0.0002417,2]
[383577809,1757003439260,-400.0,0.0002417,2]
[383577810,1757003439270,-400.0,0.00024193,2]
[383577811,1757003439280,-400.0,0.00024193,2]
[383577812,1757003439290,-400.0,0.00024193,2]
[383577813,1757003439299,-599.37987778,0.0002422,2]
[383577814,1757003439309,-614.0,0.000243,2]
[383577815,1757003439319,-1000.0,0.000244,2]
[383577816,1757003439328,-400.0,0.00024444,2]
[383577817,1757003439338,-400.0,0.00024444,2]
[383577818,1757003439348,-400.0,0.00024444,2]
[383577819,1757003439358,-150.0,0.00024445,2]
[383577820,1757003439367,-150.0,0.00024445,2]
[383577821,1757003439378,-150.0,0.00024445,2]
[383577822,1757003439387,-150.0,0.00024445,2]
[383577823,1757003439397,-400.0,0.00024467,2]
[383577824,1757003439407,-400.0,0.00024499,2]
[383577825,1757003439416,-400.0,0.00024499,2]
[383577826,1757003439427,-979.38,0.00024499,2]
[383577827,1757003439437,-400.0,0.00024499,2]
[383577828,1757003439446,-543.47,0.00024499,2]
[383577829,1757003439457,-400.0,0.00024499,2]
[383577830,1757003439467,-400.0,0.00024499,2]
[383577831,1757003439477,-400.0,0.00024499,2]
[383577832,1757003439487,-400.0,0.00024499,2]
[383577833,1757003439497,-591.94,0.00024499,2]
[383577834,1757003439507,-400.0,0.00024499,2]
[383577835,1757003439516,-341.28111363,0.00024499,2]
[383577836,1757003439526,-400.0,0.00024499,2]
[383577837,1757003439536,-494.55,0.00024499,2]
[383577838,1757003439546,-400.0,0.00024499,2]
[383577839,1757003439556,-400.0,0.00024499,2]
[383577840,1757003439566,-400.0,0.00024499,2]
[383577841,1757003439577,-400.0,0.00024499,2]
[383577842,1757003439586,-400.0,0.00024499,2]
[383577843,1757003439596,-400.0,0.00024499,2]
[383577844,1757003439607,-400.0,0.00024499,2]
[383577845,1757003439617,-400.0,0.00024499,2]
[383577846,1757003439626,-400.0,0.00024499,2]
[383577847,1757003439636,-406.43374559,0.00024499,2]
[383577848,1757003439647,-502.37,0.00024499,2]
[383577849,1757003439657,-400.0,0.00024499,2]
[383577850,1757003439667,-461.56,0.00024499,2]
[383577851,1757003439677,-400.0,0.00024499,2]
[383577852,1757003439686,-400.0,0.00024499,2]
[383577853,1757003439696,-400.0,0.00024499,2]
[383577854,1757003439706,-400.0,0.00024499,2]
[383577855,1757003439716,-400.93561554,0.00024499,2]
[383577856,1757003439725,-400.0,0.00024499,2]
[383577857,1757003439735,-400.0,0.00024499,2]
[383577858,1757003439745,-400.0,0.00024499,2]
[383577859,1757003439754,-277.01550323,0.00024499,2]
[383577860,1757003439765,-722.32,0.00024499,2]
[383577861,1757003439775,-96401.96659482,0.000245,2]
[383577862,1757003439785,-156.40538971,0.000245,2]
[383577863,1757003439795,-2658.33344386,0.00024594,2]
[383577864,1757003439804,-1000.0,0.00024616,2]
[383577865,1757003439814,-1000.0,0.00024658,2]
[383577866,1757003439825,-609.45,0.00024658,2]
[383577867,1757003439835,-171.35,0.00024662,2]
[383577868,1757003439844,-500.0,0.000247,9]
[383577869,1757003439854,-257.91778498,0.00024716,2]
[383577870,1757003439864,-400.0,0.00024718,2]
[383577871,1757003439874,-400.0,0.00024718,2]
[383577872,1757003439884,-500.0,0.00024718,2]
[383577873,1757003439896,-500.0,0.00024718,2]
[383577874,1757003439906,-500.0,0.00024718,2]
[383577875,1757003439916,-500.0,0.00024718,2]
[383577876,1757003439926,-500.0,0.00024718,2]
[383577877,1757003439936,-500.0,0.00024718,2]
[383577878,1757003439946,-500.0,0.00024718,2]
[383577879,1757003439955,-500.0,0.00024718,2]
[383577880,1757003439965,-822.0,0.00024718,2]
[383577881,1757003439975,-150.0,0.00024719,2]
[383577882,1757003439984,-948.78354,0.0002472,2]
[383577883,1757003439993,-259.89290214,0.00024741,2]
[383577884,1757003440003,-400.0,0.00024773,2]
[383577885,1757003440013,-276.62,0.00024773,2]
[383577886,1757003440023,-979.38,0.00024773,2]
[383577887,1757003440033,-177.9,0.00024773,2]
[383577888,1757003440044,-267.05,0.00024773,2]
[383577889,1757003440054,-202.16,0.00024773,2]
[383577890,1757003440063,-462.2,0.00024773,2]
[383577891,1757003440075,-213.49,0.00024773,2]
[383577892,1757003440085,-591.94,0.00024773,2]
[383577893,1757003440094,-302.72,0.00024773,2]
[383577894,1757003440104,-400.0,0.00024773,2]
[383577895,1757003440113,-400.0,0.00024773,2]
[383577896,1757003440123,-376.83,0.00024773,2]
[383577897,1757003440133,-400.0,0.00024773,2]
[383577898,1757003440143,-400.0,0.00024773,2]
[383577899,1757003440153,-400.0,0.00024773,2]
[383577900,1757003440163,-400.0,0.00024773,2]
[383577901,1757003440173,-345.73,0.00024773,2]
[383577902,1757003440184,-400.0,0.00024773,2]
[383577903,1757003440194,-400.0,0.00024773,2]
[383577904,1757003440204,-400.0,0.00024773,2]
[383577905,1757003440215,-400.0,0.00024773,2]
[383577906,1757003440224,-400.0,0.00024773,2]
[383577907,1757003440234,-297.52,0.00024773,2]
[383577908,1757003440244,-722.32,0.00024773,2]
[383577909,1757003440253,-224.59,0.0002479,2]
[383577910,1757003440263,-400.0,0.00024799,2]
[383577911,1757003440274,-400.0,0.00024799,2]
[383577912,1757003440283,-400.0,0.00024799,2]
[383577913,1757003440293,-372.72614743,0.00024799,2]
[383577914,1757003440303,-173.41,0.00024799,2]
[383577915,1757003440313,-167.01,0.00024799,2]
[383577917,1757003440323,-400.0,0.00024799,2]
[383577918,1757003440332,-400.0,0.00024799,2]
[383577919,1757003440342,-400.0,0.00024799,2]
[383577920,1757003440351,-400.0,0.00024799,2]
[383577921,1757003440362,-400.0,0.00024799,2]
[383577922,1757003440371,-410.90285579,0.00024799,2]
[383577923,1757003440382,-400.0,0.00024799,2]
[383577924,1757003440391,-400.0,0.00024799,2]
[383577925,1757003440401,-400.0,0.00024799,2]
[383577926,1757003440411,-1100.0,0.000248,9]
[383577927,1757003440420,-500.0,0.00024821,2]
[383577928,1757003440431,-4615.1438562,0.00024831,2]
[383577929,1757003440440,-5000.0,0.00024864,2]
[383577930,1757003440450,-193.25905038,0.0002487,2]
[383577931,1757003440460,-217.48353896,0.00024874,2]
[383577932,1757003440470,-27223.933978,0.0002488,3]
[383577933,1757003440480,-3010.21128815,0.0002488,3]
[383577934,1757003440489,-514.64478986,0.0002488,3]
[383577935,1757003440499,-160.0,0.0002488,3]
[383577936,1757003440509,-686.24276994,0.0002489,2]
[383577937,1757003440519,-212.59699798,0.0002489,3]
[383577938,1757003440528,-160.0,0.0002489,3]
[383577940,1757003440538,-1000.0,0.0002489,2]
[383577942,1757003440548,-400.0,0.00024899,2]
[383577944,1757003440558,-400.0,0.00024899,2]
[383577946,1757003440569,-400.0,0.00024899,2]
[383577948,1757003440579,-209.08,0.00024899,2]
[383577950,1757003440588,-401.98033529,0.00024899,2]
[383577952,1757003440598,-400.0,0.00024899,2]
[383577954,1757003440608,-400.0,0.00024899,2]
[383577956,1757003440618,-401.6135245,0.00024899,2]
[383577958,1757003440628,-400.0,0.00024899,2]
[383577960,1757003440637,-400.0,0.00024899,2]
[383577962,1757003440650,-400.0,0.00024899,2]
[383577965,1757003440659,-400.0,0.00024899,2]
[383577967,1757003440669,-400.0,0.00024899,2]
[383577969,1757003440680,-400.0,0.00024899,2]
[383577971,1757003440689,-400.0,0.00024899,2]
[383577973,1757003440699,-400.0,0.00024899,2]
[383577975,1757003440709,-400.0,0.00024899,2]
[383577977,1757003440718,-400.0,0.00024899,2]
[383577979,1757003440728,-400.0,0.00024899,2]
[383577981,1757003440738,-400.0,0.00024899,2]
[383577983,1757003440749,-400.0,0.00024899,2]
[383577985,1757003440767,-400.0,0.00024899,2]
[383577987,1757003440777,-400.0,0.00024899,2]
[383577989,1757003440787,-400.0,0.00024899,2]
[383577991,1757003440796,-400.0,0.00024899,2]
[383577993,1757003440806,-400.0,0.00024899,2]
[383577995,1757003440815,-400.0,0.00024899,2]
[383577997,1757003440825,-400.0,0.00024899,2]
[383578000,1757003440835,-400.0,0.00024899,2]
[383578003,1757003440845,-347.18,0.00024899,2]
[383578006,1757003440855,-400.0,0.00024899,2]
[383578008,1757003440864,-400.0,0.00024899,2]
[383578010,1757003440874,-400.0,0.00024899,2]
[383578012,1757003440883,-400.0,0.00024899,2]
[383578014,1757003440892,-407.34,0.00024899,2]
[383578016,1757003440902,-400.0,0.00024899,2]
[383578018,1757003440911,-400.0,0.00024899,2]
[383578020,1757003440920,-1700.0,0.000249,9]
[383578022,1757003440930,-8164.51835196,0.000249,2]
[383578024,1757003440939,-2500.0,0.00024931,7]
[383578026,1757003440949,-27223.933978,0.00024951,3]
[383578028,1757003440958,-160.0,0.00024951,3]
[383578030,1757003440968,-3454.2734823,0.00024955,3]
[383578087,1757003441509,-438.53345599,0.00024955,3]
[383578267,1757003443348,-151.0,0.00021894,2]
[383578269,1757003443358,-18684.40942687,0.00023243,2]
[383578397,1757003446562,-256.12414014,0.00023243,2]
[383578398,1757003446722,-2208.46643299,0.00023243,2]
[383578399,1757003446732,-2500.0,0.000244,2]
[383578400,1757003446742,-400.0,0.00024499,2]
[383578401,1757003446752,-400.0,0.00024499,2]
[383578402,1757003446762,-400.0,0.00024772,2]
[383578403,1757003446771,-445.18,0.00024773,2]
[383578404,1757003446782,-400.0,0.00024773,2]
[383578405,1757003446791,-21447.21965298,0.00024955,3]
[383578837,1757003468653,157.9,0.00011986,2]
[383578838,1757003468897,157.9,0.00015982,2]
[383578839,1757003469111,157.9,0.00019977,2]
[383578844,1757003709332,829.47,7.945e-05,2]
[383578847,1757004092652,1140.929042,0.0003013,120]
[383578851,1757004174155,1000.0,0.00030136,120]
[383578852,1757004174436,1000.0,0.00030136,120]
[383578853,1757004174742,1000.0,0.00030136,120]
[383578854,1757004175081,1000.0,0.00030136,120]
[383578855,1757004175616,1000.0,0.00030136,120]
[383578856,1757004175883,1000.0,0.00030136,120]
[383578857,1757004176124,1000.0,0.00030136,120]
[383578858,1757004176402,1000.0,0.00030136,120]
[383578859,1757004176670,1000.0,0.00030136,120]
[383578860,1757004176983,1000.0,0.00030136,120]
[383578861,1757004177279,1000.0,0.00030136,120]
[383578862,1757004177687,1000.0,0.00030136,120]
[383578863,1757004178255,1000.0,0.00030136,120]
[383578864,1757004178519,1000.0,0.00030136,120]
[383578865,1757004178788,1000.0,0.00030136,120]
[383578866,1757004179368,1000.0,0.00030136,120]
[383578867,1757004179967,1000.0,0.00030136,120]
[383578868,1757004180247,1000.0,0.00030136,120]
[383578869,1757004180498,1000.0,0.00030136,120]
[383578870,1757004180752,1000.0,0.00030136,120]
[383578871,1757004181017,1000.0,0.00030136,120]
[383578872,1757004181268,1000.0,0.00030136,120]
[383578873,1757004181818,1000.0,0.00030136,120]
[383578874,1757004182067,1000.0,0.00030136,120]
[383578875,1757004182335,1000.0,0.00030136,120]
[383578876,1757004182608,1000.0,0.00030136,120]
[383578877,1757004182889,1000.0,0.00030136,120]
[383578878,1757004183149,1000.0,0.00030136,120]
[383578879,1757004183417,1000.0,0.00030136,120]
[383578880,1757004184013,1000.0,0.00030136,120]
[383578881,1757004184289,1000.0,0.00030136,120]
[383578882,1757004184586,1000.0,0.00030136,120]
[383578883,1757004184863,1000.0,0.00030136,120]
[383578884,1757004185133,1000.0,0.00030136,120]
[383578885,1757004185411,1000.0,0.00030136,120]
[383578886,1757004185665,1000.0,0.00030136,120]
[383578887,1757004185926,1000.0,0.00030136,120]
[383578888,1757004186192,1000.0,0.00030136,120]
[383578889,1757004186452,1000.0,0.00030136,120]
[383578890,1757004186719,1000.0,0.00030136,120]
[383578891,1757004186977,1000.0,0.00030136,120]
[383578892,1757004187245,1000.0,0.00030136,120]
[383578893,1757004187491,1000.0,0.00030136,120]
[383578894,1757004187749,1000.0,0.00030136,120]
[383578895,1757004188221,1000.0,0.00030136,120]
[383578896,1757004188475,1000.0,0.00030136,120]
[383578897,1757004188733,1000.0,0.00030136,120]
[383578898,1757004188994,1000.0,0.00030136,120]
[383578899,1757004189237,1000.0,0.00030136,120]
[383578900,1757004189488,1000.0,0.00030136,120]
[383578901,1757004189772,1000.0,0.00030136,120]
[383578902,1757004190312,1000.0,0.00030136,120]
[383578903,1757004190580,1000.0,0.00030136,120]
[383578904,1757004190851,1000.0,0.00030136,120]
[383578905,1757004191113,1000.0,0.00030136,120]
[383578906,1757004191391,1000.0,0.00030136,120]
[383578907,1757004191648,1000.0,0.00030136,120]
[383578908,1757004191934,1000.0,0.00030136,120]
[383578909,1757004192184,1000.0,0.00030136,120]
[383578910,1757004192457,1000.0,0.00030136,120]
[383578911,1757004193036,1000.0,0.00030136,120]
[383578912,1757004193312,1000.0,0.00030136,120]
[383578913,1757004193562,1000.0,0.00030136,120]
[383578914,1757004194259,1000.0,0.00030136,120]
[383578915,1757004195153,1000.0,0.00030136,120]
[383578916,1757004195439,1000.0,0.00030136,120]
[383578917,1757004196019,1000.0,0.00030136,120]
[383578918,1757004196268,1000.0,0.00030136,120]
[383578919,1757004196508,1000.0,0.00030136,120]
[383578920,1757004196742,1000.0,0.00030136,120]
[383578921,1757004197006,931.94,0.00030136,120]
[383578926,1757004315991,684.29,0.0003,120]
[383578927,1757004367898,345.7,0.00011228,2]
[383578928,1757004368125,345.7,0.00011819,2]
[383578929,1757004368355,345.7,0.0001241,2]
[383578930,1757004368577,345.7,0.00013001,2]
[383578931,1757004368832,345.7,0.00013592,2]
[383578932,1757004369249,345.7,0.00014183,2]
[383578933,1757004369461,345.7,0.00014774,2]
[383578934,1757004369668,345.7,0.00015365,2]
[383578935,1757004370107,345.7,0.00015956,2]
[383578936,1757004370579,345.7,0.00016547,2]
[383578937,1757004370790,345.7,0.00017138,2]
[383578938,1757004371196,345.7,0.00017729,2]
[383578939,1757004371516,345.7,0.0001832,2]
[383578941,1757004371650,345.7,0.00018911,2]
[383578942,1757004371894,345.7,0.00019502,2]
[383578943,1757004446908,500.0,0.00013699,2]
[383578944,1757004448858,500.0,0.00017634,2]
[383578947,1757004450130,450.0,0.00017928,2]
[383578991,1757004451386,405.0,0.00018222,2]
[383579052,1757004452649,364.5,0.00018515,2]
[383579114,1757004454079,328.05,0.00018809,2]
[383579172,1757004455302,295.245,0.00019103,2]
[383579229,1757004456527,265.7205,0.00019397,2]
[383579280,1757004457743,239.14845,0.00019691,2]
[383579336,1757004458998,215.233605,0.00019985,2]
[383579338,1757004631672,-345.7,0.00020093,2]
[383579339,1757004631682,-203.0,0.0002013,2]
[383579340,1757004631691,-193.7102445,0.00020279,2]
[383579341,1757004631704,-257.72201306,0.00020684,2]
[383579342,1757004631831,-87.97798694,0.00020684,2]
[383579343,1757004631841,-203.0,0.0002081,2]
[383579344,1757004631850,-345.7,0.00021275,2]
[383579345,1757004631860,-203.0,0.000215,2]
[383579346,1757004631870,-345.7,0.00021866,2]
[383579347,1757004631879,-151.0,0.00021877,2]
[383579348,1757004631889,-151.0,0.00021881,2]
[383579349,1757004631898,-193.22767197,0.00022,2]
[383579350,1757004631910,-128.03232803,0.00022,2]
[383579351,1757004631920,-224.37435849,0.00022099,2]
[383579352,1757004631930,-300.0,0.00022099,2]
[383579353,1757004631939,-1200.0,0.00022099,2]
[383579354,1757004631949,-3000.0939478,0.000221,2]
[383579355,1757004631960,-957.10357032,0.000221,2]
[383579380,1757004637483,-1212.80248188,0.000221,2]